Cogmind - Beta 10 @@@ ROGUE MODE // 2020.09.19 @ 23:44:09 Player: Tmvn Result: Destroyed by G-47 Trooper with Particle Gun Performance ------------- Evolutions (2) 1000 Regions Visited (5) 1000 Robots Destroyed (39) 195 Value Destroyed (1055) 1055 Prototype IDs (0) 0 Alien Tech Used (0) 0 Bonus (0) 0 TOTAL SCORE: 3250 Bonus ------- None Cogmind --------- Core Integrity 0/550 Matter 247/300 Energy 49/100 System Corruption 0% Temperature Cool (9) Movement Core (700) Ox13 Location -8/Materials Parts ------- > --- POWER (1) -------- (None) > --- PROPULSION (4) --- Xenon Bombardment Thruster > --- UTILITY (2) ------ High-capacity Storage Unit Advanced Signal Interpreter > --- WEAPON (4) ------- Great Axe Great Axe > --- INVENTORY (12) --- Ion Engine Improved Ion Engine Improved Ion Engine EMP Trap EMP Trap EMP Trap Peak State ------------ > --- POWER ------------ (None) > --- PROPULSION ------- Carbon-fiber Leg Xenon Bombardment Thruster Xenon Bombardment Thruster > --- UTILITY ---------- High-capacity Storage Unit Advanced Signal Interpreter > --- WEAPON ----------- Great Axe Great Axe > --- INVENTORY -------- Ion Engine Improved Ion Engine Improved Ion Engine EMP Trap EMP Trap EMP Trap [Rating: 23] Favorites ----------- Power Light Ion Engine Engine Light Ion Engine Propulsion Light Treads Treads Light Treads Leg Aluminum Leg Flight Unit Xenon Bombardment Thruster Utility Signal Interpreter Storage Large Storage Unit Processor Signal Interpreter Weapon Light Assault Rifle Energy Gun Medium Laser Energy Cannon Ion Cannon Ballistic Gun Light Assault Rifle Launcher Grenade Launcher Slashing Weapon Great Axe Build | -11 -10 -10 -9 -9 -8 ------- Run | Scr Mat Min Mat Min Mat Slots Evolved 4 | . . . 2 . 2 Power . | . . . . . . Propulsion 2 | . . . 2 . . Utility . | . . . . . . Weapon 2 | . . . . . 2 Parts Attached 45 | 6 5 4 14 1 15 Power 9 | 1 1 2 3 . 2 Engine 9 | 1 1 2 3 . 2 Core . | . . . . . . Reactor . | . . . . . . Propulsion 13 | 2 . . 6 1 4 Treads 6 | 2 . . 3 1 . Leg 5 | . . . 3 . 2 Wheel . | . . . . . . Hover . | . . . . . . Flight 2 | . . . . . 2 Utility 5 | 1 2 . 1 . 1 Device . | . . . . . . Storage 3 | 1 1 . 1 . . Processor 2 | . 1 . . . 1 Hackware . | . . . . . . Protection . | . . . . . . Artifact . | . . . . . . Weapon 18 | 2 2 2 4 . 8 Energy Gun 7 | 1 1 1 3 . 1 Energy Cannon 1 | . . . . . 1 Ballistic Gun 7 | 1 1 1 1 . 3 Ballistic Cannon . | . . . . . . Launcher 1 | . . . . . 1 Special Weapon . | . . . . . . Impact Weapon . | . . . . . . Slashing Weapon 2 | . . . . . 2 Piercing Weapon . | . . . . . . Special Melee Weapon . | . . . . . . Unidentified Prototypes . | . . . . . . Parts Lost 20 | . 2 . 2 . 16 Power 3 | . 1 . . . 2 Propulsion 7 | . . . 1 . 6 Utility . | . . . . . . Weapon 10 | . 1 . 1 . 8 Highest Loss Streak 7 | . 2 . 1 . 7 Average Slot Usage (%) 84 | . 96 100 84 85 62 Engine 10 | . 13 14 11 11 5 Treads 23 | . 28 28 21 30 12 Leg 2 | . . . 7 . . Storage 11 | . 14 14 11 11 9 Processor 11 | . 10 14 11 11 9 Energy Gun 10 | . 14 14 11 11 5 Ballistic Gun 12 | . 14 14 11 11 12 Naked Turns . | . . . . . . Heaviest Build 52 | 11 23 22 45 45 52 Greatest Support 60 | 40 40 40 40 60 60 Greatest Overweight (x) 14 | . . . 1 1 14 Average Overweight (x) . | . . . . . 2 Largest Inventory Capacity 12 | 6 12 10 12 12 12 Average Capacity 10 | 5 9 10 10 12 12 Most Carried 12 | 2 5 9 12 12 9 Average Carried 7 | 1 4 6 9 9 7 Final Capacity 12 | 6 10 10 12 12 12 Final Carried 12 | 2 5 8 12 10 6 Class Distribution -------------------- 56% | Mutant 34% | Scavenger-Mutant 9% | Scavenger-Gunner Dominant Class ---------------- Mutant | -10/Materials Mutant | -10/Mines Scavenger-Mutant | -9/Materials Scavenger-Mutant | -9/Mines Mutant | -8/Materials Resources | -11 -10 -10 -9 -9 -8 ----------- Run | Scr Mat Min Mat Min Mat Matter Collected 794 | 260 97 47 177 36 177 Remotely . | . . . . . . Salvage Created 1364 | . 264 134 484 36 446 Parts 79 | . 18 14 28 2 17 Haulers Intercepted . | . . . . . . Recyclers Shooed 2 | . . . 1 . 1 Parts Field Recycled . | . . . . . . Retrieved Matter . | . . . . . . Parts Self-Destructed . | . . . . . . Prevented . | . . . . . . Kills | -11 -10 -10 -9 -9 -8 ------- Run | Scr Mat Min Mat Min Mat Combat Hostiles Destroyed 33 | . 8 5 8 3 9 Melee 1 | . . . . . 1 Guns 29 | . 8 5 8 3 5 Cannons 3 | . . . . . 3 Classes Destroyed 7 | . 2 . 3 . 2 Worker 3 | . . . . . 3 Builder 2 | . . . 2 . . Recycler 1 | . . . 1 . . Swarmer 11 | . 3 3 . 3 2 Grunt 15 | . 5 2 6 . 2 Sentry 5 | . . . 2 . 3 Hunter 2 | . . . . . 2 Best Kill Streak 5 | . 5 3 3 3 5 Combat Bots Only 5 | . 5 3 3 3 3 Max Kills in Single Turn 2 | . 2 1 1 1 1 Gunslinging 1 | . 1 . . . . Exploded . | . . . . . . Melee 1 | . . . . . 1 Uniques/NPCs Destroyed . | . . . . . . Combat | -11 -10 -10 -9 -9 -8 -------- Run | Scr Mat Min Mat Min Mat Damage Taken 2863 | . 328 117 519 223 1676 Core 713 | . 46 30 49 30 558 Absorbed by Shields . | . . . . . . Core Remaining (%) 83 | 100 . 69 . 80 . Volleys Fired 98 | . 20 10 29 11 28 Largest 4 | . 2 2 2 2 4 Hottest 166 | . 70 70 88 88 166 Shots Fired 232 | . 39 20 57 22 94 Gun 216 | . 39 20 57 22 78 Cannon 14 | . . . . . 14 Launcher 2 | . . . . . 2 Special . | . . . . . . Kinetic 127 | . 20 10 29 11 57 Thermal 103 | . 19 10 28 11 35 Explosive 2 | . . . . . 2 Electromagnetic . | . . . . . . Robot Hit Streak 16 | . 12 9 16 4 7 Robot Miss Streak 5 | . 2 3 1 3 5 Penetration Max . | . . . . . . Secondary Targets 5 | . 1 . 2 1 1 Max Gunslinging Chain 1 | . 1 . 1 1 1 Shots Hit Robots 157 | . 31 14 44 10 58 Core Hits 75 | . 14 10 21 3 27 Critical Hits 2 | . 1 . . . 1 Critical Kills 1 | . 1 . . . . Critical Parts Destroyed 1 | . . . . . 1 Melee Attacks 13 | . . . . . 13 Impact . | . . . . . . Slashing 13 | . . . . . 13 Piercing . | . . . . . . Sneak Attacks . | . . . . . . Combat Hostiles . | . . . . . . Follow-up Attacks 1 | . . . . . 1 Damage Inflicted 2431 | . 354 156 509 133 1279 Guns 1627 | . 354 156 509 133 475 Cannons 270 | . . . . . 270 Explosions 197 | . . . . . 197 Melee 337 | . . . . . 337 Ramming . | . . . . . . Kinetic 723 | . 165 48 209 71 230 Thermal 1174 | . 189 108 300 62 515 Explosive 197 | . . . . . 197 Electromagnetic . | . . . . . . Impact . | . . . . . . Slashing 337 | . . . . . 337 Piercing . | . . . . . . Highest Corruption . | . . . . . . Average Corruption . | . . . . . . Corruption Purged . | . . . . . . Overload Shots . | . . . . . . Overflow Damage 6 | . . . . . 6 Projectiles 6 | . . . . . 6 Explosions . | . . . . . . Melee . | . . . . . . Knockbacks . | . . . . . . Impact . | . . . . . . Kinetic . | . . . . . . Secondary . | . . . . . . Self-Inflicted Damage . | . . . . . . Shots . | . . . . . . Rammed . | . . . . . . Targets Rammed . | . . . . . . Kicked . | . . . . . . Crushed . | . . . . . . Highest Temperature 243 | . 126 136 168 169 243 Average Temperature 62 | . 46 48 43 73 83 Received Heat Transfer 663 | . 120 36 255 . 252 Siege Activations . | . . . . . . Robots Corrupted . | . . . . . . Combat Hostiles . | . . . . . . Parts Fried . | . . . . . . Impact Corruptions . | . . . . . . Robots Melted . | . . . . . . Combat Hostiles . | . . . . . . Parts Melted 3 | . 1 . 1 . 1 Heat Transferred 2876 | . 555 285 815 148 1073 Parts Sabotaged . | . . . . . . Parts Stolen . | . . . . . . Parts Stripped . | . . . . . . Power Chain Reactions . | . . . . . . Missiles Intercepted . | . . . . . . Alert | -11 -10 -10 -9 -9 -8 ------- Run | Scr Mat Min Mat Min Mat Peak Influence 274 | . 215 218 241 128 274 Initial 84 | . . 83 84 58 49 Average 137 | . 116 161 124 121 179 Maximum Alert Level 1 | . 1 1 1 . 1 Low Security (%) 73 | 100 64 67 88 100 43 Level 1 26 | . 35 32 11 . 56 Level 2 . | . . . . . . Level 3 . | . . . . . . Level 4 . | . . . . . . Level 5 . | . . . . . . High Security . | . . . . . . Max Security . | . . . . . . Squads Dispatched 3 | . 1 . 1 . 1 Investigation . | . . . . . . Extermination . | . . . . . . Reinforcement 3 | . 1 . 1 . 1 Assault . | . . . . . . Garrison . | . . . . . . Intercept . | . . . . . . Construction Impeded 1 | . . . . . 1 Haulers Reinforced . | . . . . . . Stealth | -11 -10 -10 -9 -9 -8 --------- Run | Scr Mat Min Mat Min Mat Distress Signals 4 | . 2 . . . 2 Communications Jammed . | . . . . . . Distress Signals . | . . . . . . Times Spotted 55 | . 12 5 10 3 25 Peak Tracking Total 7 | . 7 3 3 3 6 Tactical Retreats 4 | . . . . . 4 Traps | -11 -10 -10 -9 -9 -8 ------- Run | Scr Mat Min Mat Min Mat Traps Triggered . | . . . . . . Indirectly . | . . . . . . Trap Hack Attempts . | . . . . . . Triggered . | . . . . . . Disarmed . | . . . . . . Reprogrammed . | . . . . . . Reused . | . . . . . . Traps Extracted . | . . . . . . Installed . | . . . . . . Triggered . | . . . . . . Machines | -11 -10 -10 -9 -9 -8 ---------- Run | Scr Mat Min Mat Min Mat Machines Disabled . | . . . . . . Max in Single Turn . | . . . . . . Machines Sabotaged . | . . . . . . Garrisons Compromised . | . . . . . . Overloaded Fab Kills . | . . . . . . Fab Network Shutdowns . | . . . . . . Hacking | -11 -10 -10 -9 -9 -8 --------- Run | Scr Mat Min Mat Min Mat Machines Accessed 6 | . 2 1 2 . 1 Terminals 5 | . 2 1 1 . 1 Fabricators . | . . . . . . Repair Stations 1 | . . . 1 . . Recycling Units . | . . . . . . Scanalyzers . | . . . . . . Garrison Access . | . . . . . . Total Hacks 10 | . 3 1 5 . 1 Successful 7 | . 2 1 3 . 1 Failed 3 | . 1 . 2 . . Catastrophic . | . . . . . . Database Lockouts . | . . . . . . Manual . | . . . . . . Terminals 6 | . 3 1 1 . 1 Fabricators . | . . . . . . Repair Stations 4 | . . . 4 . . Recycling Units . | . . . . . . Scanalyzers . | . . . . . . Garrison Access . | . . . . . . Terminal Hacks 5 | . 2 1 1 . 1 Record 1 | . . 1 . . . Emergency Access Points 1 | . 1 . . . . Alert Level 1 | . . . 1 . . Transport Status 1 | . . . . . 1 Zone Layout 1 | . 1 . . . . Fabricator Hacks . | . . . . . . Repair Station Hacks 2 | . . . 2 . . Scan Component 1 | . . . 1 . . Repair 1 | . . . 1 . . Recycling Unit Hacks . | . . . . . . Scanalyzer . | . . . . . . Garrison Access Hacks . | . . . . . . Unauthorized Hacks . | . . . . . . Terminals . | . . . . . . Fabricators . | . . . . . . Repair Stations . | . . . . . . Recycling Units . | . . . . . . Scanalyzers . | . . . . . . Garrison Access . | . . . . . . Data Cores Recovered . | . . . . . . Used . | . . . . . . Hacking Detections 3 | . 2 . 1 . . Full Trace Events . | . . . . . . Feedback Events . | . . . . . . Feedback Blocked . | . . . . . . Robot Schematics Acquired . | . . . . . . Robots Built . | . . . . . . Matter . | . . . . . . Time . | . . . . . . Total Robot Build Rating . | . . . . . . Part Schematics Acquired . | . . . . . . Parts Built . | . . . . . . Matter . | . . . . . . Time . | . . . . . . Total Part Build Rating . | . . . . . . Parts Repaired 1 | . . . 1 . . Time 26 | . . . 26 . . Parts Recycled . | . . . . . . Recycled Matter . | . . . . . . Retrieved Matter . | . . . . . . Retrieved Components . | . . . . . . Parts Scanalyzed . | . . . . . . Part Schematics Acquired . | . . . . . . Parts Damaged . | . . . . . . Bothacking | -11 -10 -10 -9 -9 -8 ------------ Run | Scr Mat Min Mat Min Mat Used RIF Installer . | . . . . . . Robots Hacked . | . . . . . . Non-combat . | . . . . . . Combat . | . . . . . . Robot Hacks Applied . | . . . . . . Relay Couplers Released . | . . . . . . Robots Rewired . | . . . . . . Allies Hacked . | . . . . . . Hacks Repelled . | . . . . . . Allies | -11 -10 -10 -9 -9 -8 -------- Run | Scr Mat Min Mat Min Mat Total Allies . | . . . . . . Largest Group . | . . . . . . Highest-Rated Group . | . . . . . . Highest-Rated Ally . | . . . . . . Total Orders . | . . . . . . Ally Attacks . | . . . . . . Total Damage . | . . . . . . Kills . | . . . . . . Allies Corrupted . | . . . . . . Allies Melted . | . . . . . . Intel | -11 -10 -10 -9 -9 -8 ------- Run | Scr Mat Min Mat Min Mat Robot Analysis Total . | . . . . . . Derelict Logs Recovered 3 | . . 2 . 1 . Drone Launches . | . . . . . . Drone Recoveries . | . . . . . . Exploration | -11 -10 -10 -9 -9 -8 ------------- Run | Scr Mat Min Mat Min Mat Turns Passed 2085 | 64 298 395 645 263 420 Spaces Moved 973 | 35 144 226 311 140 117 Core 20 | 2 . . . . 18 Treads 877 | 33 144 226 249 140 85 Legs 69 | . . . 62 . 7 Wheels . | . . . . . . Hover . | . . . . . . Flight 7 | . . . . . 7 Fastest Speed 50 | 50 160 160 120 160 160 Average Speed 170 | 153 160 160 162 161 239 Slowest Speed 750 | 160 160 160 180 180 750 Overloaded Moves . | . . . . . . Propulsion Burnouts . | . . . . . . Robots Hopped . | . . . . . . Cave-ins Triggered . | . . . . . . Exploration Rate (%) 27 | 3 38 47 27 37 14 Regions Visited 5 Branch Regions 2 Pre-discovered Areas . | . . . . . . Known Exits Taken 4 | . 1 1 1 1 . Unknown Exits Taken 1 | 1 . . . . . Scrap Searched 1 | . . 1 . . . Spaces Dug . | . . . . . . Terrain Destroyed 14 | . . . . . 14 Melee . | . . . . . . Projectile 1 | . . . . . 1 AOE 13 | . . . . . 13 Terrain Rammed . | . . . . . . Walls Destroyed . | . . . . . . Machines Disabled . | . . . . . . Actions | -11 -10 -10 -9 -9 -8 --------- Run | Scr Mat Min Mat Min Mat Total 1183 | 42 171 240 398 158 174 Wait 38 | . . . 37 . 1 Move 968 | 34 143 225 310 139 117 Hop . | . . . . . . Pick Up 10 | 2 2 . 2 3 1 Fast Attach 18 | 6 3 . 2 . 7 Attach 11 | . 1 . 3 1 6 Detach 1 | . 1 . . . . Swap 16 | . 1 4 9 . 2 Drop 11 | . . 1 6 4 . Fire 98 | . 20 10 29 11 28 Melee 12 | . . . . . 12 Ram . | . . . . . . Kick . | . . . . . . Crush . | . . . . . . Escape Stasis . | . . . . . . Rewire . | . . . . . . Trap . | . . . . . . Miscellaneous . | . . . . . . Route ------- -11/Scrapyard -10/Materials -10/Mines -9/Materials (discovered 2 exits: Mat / *Min) -9/Mines -8/Materials (discovered 1 exit: Fac) History --------- Turn | Location | Event 9 | -11/Scrapyard | Discovered new exit (range 16) 65 | -11/Scrapyard | Entered Materials 301 | -10/Materials | Build established: Mutant 339 | -10/Materials | Discovered new exit (range 16) 361 | -10/Materials | Identified exit to Mines 363 | -10/Materials | Entered Mines 368 | -10/Mines | Met a Derelict bent on vengeance 481 | -10/Mines | Learned 4 Materials zone layouts 644 | -10/Mines | Learned Materials security intel 742 | -10/Mines | Discovered new exit (range 8) 756 | -10/Mines | Identified exit to Materials 758 | -10/Mines | Entered Materials 758 | -9/Materials | Evolved 2 slots: Propulsion x2 759 | -9/Materials | Identified exit to Materials 759 | -9/Materials | Identified exit to Mines 1019 | -9/Materials | Repaired Lgt. Treads 1392 | -9/Materials | Build established: Scavenger-Mutant 1403 | -9/Materials | Entered Mines 1462 | -9/Mines | Learned location of 1 exit from Materials 1526 | -9/Mines | Found a hidden stash of uninstalled traps 1626 | -9/Mines | Discovered exit to Materials (range 14) 1666 | -9/Mines | Entered Materials 1666 | -8/Materials | Evolved 2 slots: Weapon x2 1667 | -8/Materials | Identified exit to Factory 1921 | -8/Materials | Lost 7 parts (1p2n4w) 1960 | -8/Materials | Core integrity fell below 50% 1975 | -8/Materials | Lost 4 parts (1p1n2w) 2028 | -8/Materials | Core integrity fell below 20% 2086 | -8/Materials | Destroyed by G-47 Trooper with Particle Gun Last Messages --------------- K-01 Serf collects debris. R-06 Scavenger collects Lgt. Ion Engine. Slug penetrates Wall. Acquired Great Axe. Slug penetrates Wall. Acquired Xenon Bombardment Thruster. Penetrated by Slug. Acquired Xenon Bombardment Thruster. Penetrated by Slug. Great Axe follow-up attack on H-55 Commando. H-55 Commando suffers critical hit. Destroyed Lgt. Nuclear Core. Penetrated by Slug. H-55 Commando Carbon-fiber Leg severed. H-55 Commando destroyed. K-01 Serf collects debris. Acquired Carbon-fiber Leg. Acquired 49 matter. Carbon-fiber Leg destroyed. Xenon Bombardment Thruster destroyed. Map ----- +----------------------------------------------------+ | ?????????????????????????????????????????????????? | | ????????????????????????